Cogmind - Beta 14 @@@ ROGUE MODE // 2024.09.23 @ 19:01:50 Player: puppuppit Result: Destroyed by YI-UF0 with YI-UF0's Doublenader Performance ------------- Evolutions (0) 0 Regions Visited (4) 800 Robots Destroyed (47) 235 Value Destroyed (745) 745 Prototype IDs (25) 500 Alien Tech Used (0) 0 Bonus (367) 367 TOTAL SCORE: 2647 Bonus ------- Follower Combat Kills 67 Aligned with FarCom 300 Cogmind --------- Core Integrity 0/250 Matter 290/300 Energy 87/100 System Corruption 5% Temperature Cool (0) Movement Rolling (80) Location -9/Mines Parts ------- > --- POWER (1) -------- (None) > --- PROPULSION (2) --- Wheel Wheel > --- UTILITY (2) ------ Medium Storage Unit Melee Analysis Suite > --- WEAPON (2) ------- Katana Longsword +1 > --- INVENTORY (10) --- Machine Analyzer Light Armor Plating Light Cannon Improved Light Cannon Rocket Launcher Peak State ------------ > --- POWER ------------ Light Ion Engine > --- PROPULSION ------- Wheel Wheel > --- UTILITY ---------- Medium Storage Unit Melee Analysis Suite > --- WEAPON ----------- Katana Longsword +1 > --- INVENTORY -------- Light Fission Core Wheel Hover Unit Machine Analyzer Light Armor Plating Rocket Launcher Shock Trap Shock Trap Shock Trap [Rating: 19] Favorites ----------- Power Light Ion Engine Engine Light Ion Engine Power Core Light Nuclear Core Propulsion Wheel Wheel Wheel Utility Medium Storage Unit Device Tractor Beam Storage Medium Storage Unit Processor Melee Analysis Suite Protection Light Armor Plating Weapon Light Assault Rifle Energy Gun Medium Laser Ballistic Gun Light Assault Rifle Ballistic Cannon Light Cannon Launcher Rocket Launcher Slashing Weapon Longsword +1 Build | -11 -10 -10 -10 -9 ------- Run | Yrd Mat Min Exi Min Slots Evolved . | . . . . . Power . | . . . . . Propulsion . | . . . . . Utility . | . . . . . Weapon . | . . . . . Parts Attached 38 | 9 16 7 2 4 Power 6 | 2 3 1 . . Engine 5 | 2 2 1 . . Core 1 | . 1 . . . Reactor . | . . . . . Propulsion 16 | 4 7 3 . 2 Treads . | . . . . . Leg . | . . . . . Wheel 16 | 4 7 3 . 2 Hover . | . . . . . Flight . | . . . . . Utility 6 | 1 3 . 1 1 Device 1 | . 1 . . . Storage 2 | 1 1 . . . Processor 1 | . . . . 1 Hackware . | . . . . . Protection 2 | . 1 . 1 . Artifact . | . . . . . Weapon 10 | 2 3 3 1 1 Energy Gun 2 | 2 . . . . Energy Cannon . | . . . . . Ballistic Gun 4 | . 2 2 . . Ballistic Cannon 1 | . 1 . . . Launcher 1 | . . 1 . . Special Weapon . | . . . . . Impact Weapon . | . . . . . Slashing Weapon 2 | . . . 1 1 Piercing Weapon . | . . . . . Special Melee Weapon . | . . . . . Unidentified Prototypes . | . . . . . Parts Lost 5 | . 2 . . 3 Power 1 | . . . . 1 Propulsion 4 | . 2 . . 2 Utility . | . . . . . Weapon . | . . . . . Highest Loss Streak 3 | . 2 . . 3 To Critical Strikes . | . . . . . Average Slot Usage (%) 95 | . 96 100 80 97 Engine 13 | . 12 14 14 12 Wheel 27 | . 27 28 28 28 Device 1 | . 4 . . . Storage 14 | . 14 14 14 14 Processor 1 | . . . . 13 Protection 9 | . 7 14 14 . Energy Gun 1 | . 2 . . . Ballistic Gun 14 | . 23 12 1 . Ballistic Cannon 5 | . 1 14 1 . Slashing Weapon 4 | . . . 7 27 Peak Build Rating 19 | 6 9 9 14 19 Average Rating 9 | 5 7 8 10 18 On Entrance 7 | . 6 8 8 14 Naked Turns . | . . . . . Heaviest Build 23 | 13 20 23 20 19 Greatest Support 32 | 32 26 20 20 20 Greatest Overweight (x) 1 | . . 1 . 1 Average Overweight (x) . | . . . . . Largest Inventory Capacity 10 | 8 10 10 10 10 Average Capacity 9 | 7 9 10 10 10 Most Carried 10 | 6 10 10 10 10 Average Carried 8 | 2 8 9 9 7 Final Capacity 10 | 8 10 10 10 10 Final Carried 10 | 6 10 10 10 5 Class Distribution -------------------- 90% | Mutant 9% | Scavenger-Gladiator Dominant Class ---------------- Mutant | -10/Materials Mutant | -10/Mines Mutant | -10/Exiles Scavenger-Gladiator | -9/Mines Resources | -11 -10 -10 -10 -9 ----------- Run | Yrd Mat Min Exi Min Matter Collected 1093 | 309 439 220 . 125 Remotely 129 | . 129 . . . Salvage Created 1477 | 208 769 206 . 294 Parts 106 | 15 60 20 . 11 Haulers Intercepted 2 | . 2 . . . Recyclers Shooed 2 | . 1 . . 1 Parts Field Recycled . | . . . . . Retrieved Matter . | . . . . . Parts Self-Destructed . | . . . . . Prevented . | . . . . . Kills | -11 -10 -10 -10 -9 ------- Run | Yrd Mat Min Exi Min Combat Hostiles Destroyed 22 | . 10 2 . 10 Melee 10 | . . . . 10 Guns 10 | . 10 . . . Cannons 2 | . . 2 . . Classes Destroyed 12 | 3 6 . . 3 Worker 9 | 2 3 3 . 1 Builder 3 | . 3 . . . Tunneler 10 | 5 1 4 . . Hauler 2 | . 2 . . . Recycler 3 | 1 . 1 . 1 Mechanic 1 | . 1 . . . Operator 1 | . 1 . . . Watcher 2 | . 2 . . . Swarmer 2 | . . . . 2 Grunt 13 | . 10 2 . 1 Duelist 1 | . . . . 1 Assembled 6 | . . . . 6 Best Kill Streak 6 | 4 4 5 . 6 Combat Bots Only 6 | . 3 2 . 6 Max Kills in Single Turn 2 | 2 1 1 . 1 Gunslinging . | . . . . . Exploded . | . . . . . Melee 1 | . . . . 1 Uniques/NPCs Destroyed . | . . . . . Combat | -11 -10 -10 -10 -9 -------- Run | Yrd Mat Min Exi Min Hostile Shots Fired 109 | . 69 12 . 28 Missed 35 | . 19 6 . 10 Damage Taken 995 | . 573 92 . 330 Core 252 | . 165 15 . 72 Absorbed by Shields . | . . . . . Core Remaining (%) 100 | 100 . . . . Volleys Fired 157 | 22 101 34 . . Largest 2 | 2 2 2 . . Hottest 90 | 90 90 55 . . Shots Fired 310 | 44 203 63 . . Gun 263 | 44 190 29 . . Cannon 42 | . 13 29 . . Launcher 5 | . . 5 . . Special . | . . . . . Kinetic 241 | . 183 58 . . Thermal 64 | 44 20 . . . Explosive 5 | . . 5 . . Electromagnetic . | . . . . . Robot Hit Streak 18 | 6 18 8 . . Robot Miss Streak 6 | 2 6 3 . . Penetration Max . | . . . . . Secondary Targets 2 | . 2 . . . Max Gunslinging Chain 1 | . 1 . . . Shots Hit Robots 216 | 28 134 37 . 17 Core Hits 89 | 9 56 14 . 10 Critical Kills 1 | . 1 . . . Critical Parts Destroyed 1 | . 1 . . . Critical Strikes 8 | 3 4 1 . . Burn 5 | 3 2 . . . Destroy 2 | . 2 . . . Blast 1 | . . 1 . . Melee Attacks 19 | . . . . 19 Impact . | . . . . . Slashing 19 | . . . . 19 Piercing . | . . . . . Sneak Attacks 3 | . . . . 3 Combat Hostiles . | . . . . . Follow-up Attacks 1 | . . . . 1 Damage Inflicted 3035 | 353 1196 459 . 1027 Guns 1617 | 353 1117 147 . . Cannons 391 | . 79 312 . . Explosions . | . . . . . Melee 1027 | . . . . 1027 Ramming . | . . . . . Kinetic 1489 | . 1030 459 . . Thermal 519 | 353 166 . . . Explosive . | . . . . . Electromagnetic . | . . . . . Impact . | . . . . . Slashing 1027 | . . . . 1027 Piercing . | . . . . . Highest Corruption 5 | . 1 1 1 5 Average Corruption 1 | . 1 1 1 1 Corruption Purged . | . . . . . Corruption Blocked . | . . . . . Effects 10 | . 5 3 1 1 Message Errors 3 | . . 3 . . Matter Fused 1 | . 1 . . . Data Loss (minor) 2 | . 1 . 1 . Data Loss (major) 1 | . . . . 1 Misfires 2 | . 2 . . . Weapon Failures 1 | . 1 . . . Overload Shots . | . . . . . Overflow Damage 103 | . . 4 . 99 Projectiles 4 | . . 4 . . Explosions . | . . . . . Melee 99 | . . . . 99 Knockbacks 8 | . 2 6 . . Impact . | . . . . . Kinetic 8 | . 2 6 . . Secondary . | . . . . . Self-Inflicted Damage . | . . . . . Shots . | . . . . . Rammed . | . . . . . Targets Rammed . | . . . . . Kicked . | . . . . . Crushed . | . . . . . Highest Temperature 300 | 270 300 123 . . Average Temperature 60 | 117 44 35 . . Received Heat Transfer 506 | . 342 51 . 113 Siege Activations . | . . . . . Robots Corrupted . | . . . . . Combat Hostiles . | . . . . . Parts Fried . | . . . . . Impact Corruptions . | . . . . . Robots Melted 1 | . 1 . . . Combat Hostiles . | . . . . . Parts Melted 3 | . 3 . . . Heat Transferred 1758 | 1164 594 . . . Parts Sabotaged . | . . . . . Parts Stolen . | . . . . . Parts Stripped . | . . . . . Power Chain Reactions . | . . . . . Alert | -11 -10 -10 -10 -9 ------- Run | Yrd Mat Min Exi Min Peak Influence 312 | 40 312 114 . 191 Initial 39 | . 26 39 . . Average 96 | 16 131 46 . 156 Maximum Alert Level 1 | . 1 . . . Low Security (%) 95 | 100 89 100 . 100 Level 1 4 | . 10 . . . Level 2 . | . . . . . Level 3 . | . . . . . Level 4 . | . . . . . Level 5 . | . . . . . High Security . | . . . . . Max Security . | . . . . . Squads Dispatched 4 | . 4 . . . Investigation 3 | . 3 . . . Extermination . | . . . . . Reinforcement 1 | . 1 . . . Assault . | . . . . . Garrison . | . . . . . Intercept . | . . . . . Searches Triggered . | . . . . . Construction Impeded . | . . . . . Haulers Reinforced . | . . . . . Active Scanning Responses . | . . . . . Cargo Convoy Interrupts . | . . . . . Stealth | -11 -10 -10 -10 -9 --------- Run | Yrd Mat Min Exi Min Distress Signals 3 | . 3 . . . Communications Jammed . | . . . . . Distress Signals . | . . . . . Times Spotted 46 | . 23 4 . 19 Peak Tracking Total 12 | . 5 2 . 12 Tactical Retreats 2 | . . . . 2 Traps | -11 -10 -10 -10 -9 ------- Run | Yrd Mat Min Exi Min Traps Triggered . | . . . . . Indirectly . | . . . . . Trap Hack Attempts . | . . . . . Triggered . | . . . . . Disarmed . | . . . . . Reprogrammed 4 | . 4 . . . Reused 3 | . . . . 3 Traps Extracted . | . . . . . Installed 3 | . . . . 3 Triggered 2 | . . . . 2 Most Traps Carried 3 | . . 3 3 3 Machines | -11 -10 -10 -10 -9 ---------- Run | Yrd Mat Min Exi Min Machines Disabled 2 | . 2 . . . Max in Single Turn 1 | . 1 . . . Machines Repaired . | . . . . . Machines Dismantled . | . . . . . Machines Sabotaged . | . . . . . Overloaded Fab Kills . | . . . . . Hacking | -11 -10 -10 -10 -9 --------- Run | Yrd Mat Min Exi Min Machines Accessed 13 | . 7 . 5 1 Terminals 7 | . 6 . . 1 Fabricators . | . . . . . Repair Stations 1 | . 1 . . . Recycling Units . | . . . . . Scanalyzers . | . . . . . Garrison Access . | . . . . . Total Hacks 76 | . 24 . 50 2 Successful 56 | . 5 . 50 1 Failed 19 | . 18 . . 1 Catastrophic 6 | . 6 . . . Database Lockouts 1 | . 1 . . . Manual 11 | . 7 . 1 3 Terminals 23 | . 21 . . 2 Fabricators . | . . . . . Repair Stations 3 | . 3 . . . Recycling Units . | . . . . . Scanalyzers . | . . . . . Garrison Access . | . . . . . Terminal Hacks 56 | . 5 . 50 1 Record 49 | . . . 49 . Robot Analysis 2 | . 1 . . 1 Prototype ID Bank 1 | . 1 . . . Locate Traps 2 | . 2 . . . Reprogram Traps 1 | . 1 . . . Derelict Proto ID Bank 1 | . . . 1 . Fabricator Hacks . | . . . . . Repair Station Hacks . | . . . . . Recycling Unit Hacks . | . . . . . Scanalyzer . | . . . . . Garrison Access Hacks . | . . . . . Unauthorized Hacks . | . . . . . Terminals . | . . . . . Fabricators . | . . . . . Repair Stations . | . . . . . Recycling Units . | . . . . . Scanalyzers . | . . . . . Garrison Access . | . . . . . Data Cores Recovered . | . . . . . Used . | . . . . . Hacking Detections 8 | . 7 . . 1 Full Trace Events 7 | . 6 . . 1 Feedback Events 1 | . 1 . . . Corruption 1 | . 1 . . . Feedback Blocked . | . . . . . Robot Schematics Acquired . | . . . . . Robots Built . | . . . . . Authchips . | . . . . . Time . | . . . . . Total Robot Build Rating . | . . . . . Part Schematics Acquired . | . . . . . Parts Built . | . . . . . Authchips . | . . . . . Time . | . . . . . Total Part Build Rating . | . . . . . Parts Repaired . | . . . . . Time . | . . . . . Parts Recycled . | . . . . . Recycled Matter . | . . . . . Retrieved Matter . | . . . . . Retrieved Components . | . . . . . Parts Scanalyzed . | . . . . . Part Schematics Acquired . | . . . . . Parts Damaged . | . . . . . Bothacking | -11 -10 -10 -10 -9 ------------ Run | Yrd Mat Min Exi Min Used RIF Installer . | . . . . . Robots Hacked . | . . . . . Non-combat . | . . . . . Combat . | . . . . . Robot Hacks Applied . | . . . . . Relay Couplers Released . | . . . . . Fabnet Peak Effective % . | . . . . . Robots Rewired . | . . . . . Allies Hacked . | . . . . . Hacks Repelled . | . . . . . Allies | -11 -10 -10 -10 -9 -------- Run | Yrd Mat Min Exi Min Total Allies 3 | . . 3 . . Largest Group 3 | . . 3 2 2 Highest-Rated Group 40 | . . 40 24 24 Highest-Rated Ally 16 | . . 16 16 16 Total Orders 4 | . . 4 . . STAY 2 | . . 2 . . FOLLOW 2 | . . 2 . . Ally Attacks 28 | . . 16 . 12 Total Damage 286 | . . 170 . 116 Kills 3 | . . 2 . 1 Allies Corrupted . | . . . . . Allies Melted . | . . . . . Intel | -11 -10 -10 -10 -9 ------- Run | Yrd Mat Min Exi Min Robot Analysis Total 2 | . 1 . . 1 Derelict Logs Recovered 2 | . . 1 . 1 Drone Launches . | . . . . . Drone Recoveries . | . . . . . Exploration | -11 -10 -10 -10 -9 ------------- Run | Yrd Mat Min Exi Min Turns Passed 2176 | 136 854 687 253 246 Spaces Moved 1879 | 60 613 684 289 233 Core 3 | 3 . . . . Treads . | . . . . . Legs . | . . . . . Wheels 1876 | 57 613 684 289 233 Hover . | . . . . . Flight . | . . . . . Fastest Speed 50 | 50 80 80 80 80 Average Speed 81 | 88 82 80 80 80 Slowest Speed 100 | 100 90 95 80 95 Overloaded Moves . | . . . . . Propulsion Burnouts . | . . . . . Robots Hopped . | . . . . . Cave-ins Triggered . | . . . . . Exploration Rate (%) 57 | 4 84 97 65 39 Regions Visited 4 Branch Regions 3 Pre-discovered Areas 2 | . . 1 1 . Known Exits Taken . | . . . . . Unknown Exits Taken 4 | 1 1 1 1 . Scrap Searched 4 | . . 2 . 2 Spaces Dug 35 | . . 35 . . Terrain Destroyed 56 | . . 56 . . Melee . | . . . . . Projectile . | . . . . . AOE 56 | . . 56 . . Terrain Rammed . | . . . . . Walls Destroyed . | . . . . . Machines Disabled . | . . . . . Actions | -11 -10 -10 -10 -9 --------- Run | Yrd Mat Min Exi Min Total 2247 | 94 797 766 311 279 Wait 86 | . 35 29 16 6 Move 1875 | 59 612 683 288 233 Hop . | . . . . . Pick Up 25 | 3 11 4 1 6 Fast Attach 18 | 7 8 . 1 2 Attach 4 | . 2 . . 2 Detach 6 | 1 4 . 1 . Swap 16 | 2 6 7 1 . Drop 40 | . 18 9 3 10 Fire 157 | 22 101 34 . . Melee 17 | . . . . 17 Ram . | . . . . . Kick . | . . . . . Crush . | . . . . . Escape Stasis . | . . . . . Rewire . | . . . . . Trap 3 | . . . . 3 Miscellaneous . | . . . . . Route ------- -11/Scrapyard -10/Materials (discovered 4 exits: [*Mat x2] / [*Min x2]) -10/Mines (discovered 3 exits: [*Mat x2] / *Exi) -10/Exiles -9/Mines (discovered 1 exit: [*Mat]) History --------- Turn | Location | Event 10 | -11/Scrapyard | Discovered new exit (range 15) 137 | -11/Scrapyard | Entered Materials 317 | -10/Materials | Build established: Mutant 398 | -10/Materials | Central database locked down 490 | -10/Materials | Core integrity fell below 50% 647 | -10/Materials | Discovered new exit (range 3) 665 | -10/Materials | Discovered new exit (range 16) 794 | -10/Materials | Discovered new exit (range 9) 956 | -10/Materials | Discovered new exit (range 8) 991 | -10/Materials | Entered Mines 1044 | -10/Mines | Found a hidden stash of uninstalled traps 1097 | -10/Mines | Learned location of Storage (-9) 1177 | -10/Mines | Discovered new exit (range 9) 1430 | -10/Mines | Deemed a non-threat by the Exiles lab entrance 1431 | -10/Mines | Discovered new exit (range 5) 1490 | -10/Mines | Assisted by bots powering up and referring to "LRC-V3" 1525 | -10/Mines | Received a Rocket Launcher from a helpful Derelict 1627 | -10/Mines | Discovered new exit (range 7) 1678 | -10/Mines | Entered Exiles 1678 | -10/Exiles | Accompanied by 2 allies 1703 | -10/Exiles | Met 8R-AWN 1716 | -10/Exiles | Met EX-HEX 1742 | -10/Exiles | Met EX-BIN 1753 | -10/Exiles | Aligned with FarCom system 1754 | -10/Exiles | Given EX-Vault access code 1787 | -10/Exiles | Opened EX-Vault 1793 | -10/Exiles | Found Longsword +1 1810 | -10/Exiles | Warned to stay clear of 0b10 Research branches 1822 | -10/Exiles | Exiles lab attacked by MAIN.C 1875 | -10/Exiles | Learned location of Zion (-6) 1911 | -10/Exiles | Discovered new exit (range 14) 1931 | -10/Exiles | Left Exiles lab with Longsword +1 1931 | -10/Exiles | Entered Mines 1931 | -9/Mines | Accompanied by 2 allies 2006 | -9/Mines | Discovered new exit (range 9) 2128 | -9/Mines | Assembled infested the area 2146 | -9/Mines | Core integrity fell below 20% 2177 | -9/Mines | Destroyed by YI-UF0 with YI-UF0's Doublenader Last Messages --------------- remain somewhat susceptible to electromagnetic damage as such weaponry is not prevalent enough to warrant specialized defenses. 02148_ as-65524 destroyed. 02150_ as-91760 destroyed. 02153_ as-92595 destroyed. 02155_ Destroyed Asb. Hover Unit. 02156_ Wheel destroyed. 02158_ Destroyed Asb. F-torch. 02158_ as-86466 destroyed. 02160_ Acquired 10 matter. 02165_ Katana follow-up attack on as-37759. 02165_ as-37759 destroyed. 02167_ as-09274 destroyed. 02171_ Plasma Injector explodes. 02171_ Wheel destroyed. 02171_ U-05 Engineer destroyed. 02171_ Terminal disabled. 02171_ Plasma Injector explodes. 02174_ Acquired Wheel. 02175_ System corrupted: Substantial component data lost. Map ----- +----------------------------------------------------+ | ?????????????????????????????????????????????????? | | ?????????????????????????????????????????????????? | | ?????????????????????????????????????????????????? | | ?????????????????????????????????????????????????? | | ?????????????????????????????????????????????????? | | ?????????????????????????????????????????????????? | | ?????????????????????????????????????????????????? | | ?????????????????????????????????????????????????? | | ?????????????????????????????????????????????????? | | ?????????????????????????????????????????????????? | | ?????????????????????????????????????????????????? | | ?????????????????????????????????????????????????? | | ?????????????????????????????????????????????????? | | ?????????????????????????????????????????????????? | | ?????????????????????????????????????????????????? | | ?????????????????????????????????????????????????? | | ?????????????????????????????????????????????????? | | ?????????????????????????????????????????????????? | | ##????????????########???????????????????????????? | | #????????????# ???????????????????????????? | | #????????????# #??????????????????????????? | | #????????????# ##?????????????????????????? | | #????????????# "#???????? #???????????????? | | #????????????# "####""# ## ###??????????? | | #????????????# ;## X g ????????? | | #????????????# @ #?????????????? | | #????????????# #??????????????? | | #????????????# ## ###??????????????? | | #????????????# ! ## # #????????????? | | #????????????# ## ##?? #????????????? | | #????????????# % "### ###??????????????????? | | #????????????##;;""%""#??###????????????????????? | | #?????????????### # "##?????????????????????????? | | ##???????????????### ##??????????????????????????? | | ???????????????????# ##########??????????????????? | | ???????????????##### ^ ""#??????????????????? | | ???????????????# ###### "#?????????????????? | | ???????????????# #####????### # #????????????????? | | ???????????????# #??????????# #??????????????????? | | ???????????????# ##????????? #??????????????????? | | ????????????#### ##???????? ??????????????????? | | ????######?## #??????? ??????????????????? | | ???## ### #??????? ??????????????????? | | #### ## ##?????? ??????????????????? | | ## #######??????? ?????????????????? | | #???????????? ?????????????????? | | ##???????????? ?????????????????? | | ####### ##????????????## ?????????????????? | | #?????#####??????????????## ????????????????? | | ??????????????????????????##### ????????????????? | +----------------------------------------------------+ Best States ------------- Heat Dissipation 25 Energy Generation 14 Energy Capacity 250 Matter Stores 300 Matter Capacity 300 Sight Range 16 Terrain Scan Density 10 Armor Coverage 150 Evasion (%) 44 Melee Accuracy 5 Item Schematics ----------------- None Robot Schematics ------------------ None Fabricated ------------ Nothing Alien Tech Used ----------------- None Achievements -------------- None Challenges ------------ None Game ------ Seed TrapDisassembledCharger Manual? 0 Play Time 00:22:03 Cumulative 481.0 hours Start 2024.09.23 @ 18:43:30 End 2024.09.23 @ 19:01:50 Sessions 1 Manual Loads 0 Difficulty Rogue Special Mode None Game No. 188 Rogue 188 Adventurer 0 Explorer 0 Win Type - Total 4 Types 0/0/2/2/0/0/0/0/0 Lore% 47 Gallery% 75 Achievement% 66 Wizard Run 0 Options --------- Layout 0 ASCII 0 Keyboard 1 Movement Arrows Keybinds 0 Fullscreen 1 Font 12/Proggy Map View 83x54 Zoom Use 0% Tactical HUD 1 Map Filters NONE Filters NONE Steam 0 RUN: b176d3e3-073c-45f0-9c77-d2b623fa9576